fUST/lending_fUST_20250604
["ID","MTS","AMOUNT","RATE_DAILY","PERIOD"]
[364248678,1749048645442,-390.0,0.00016986,2]
[364248679,1749048645452,-440.0,0.00016986,2]
[364248680,1749048645462,-380.0,0.00016986,2]
[364248681,1749048645472,-440.0,0.00016986,2]
[364248682,1749048645483,-440.0,0.00016986,2]
[364248683,1749048645493,-440.0,0.00016986,2]
[364248684,1749048645504,-440.0,0.00016986,2]
[364248685,1749048645514,-440.0,0.00016986,2]
[364248686,1749048645524,-440.0,0.00016986,2]
[364248687,1749048645534,-738.59,0.00016986,2]
[364248688,1749048645543,-390.0,0.00016986,2]
[364248689,1749048645553,-534.59,0.00016986,2]
[364248690,1749048645562,-882.73,0.00016986,2]
[364248691,1749048645572,-390.0,0.00016986,2]
[364248692,1749048645582,-293.9262159,0.00016986,2]
[364248693,1749048645591,-440.0,0.00016986,2]
[364248694,1749048645601,-440.0,0.00016986,2]
[364248695,1749048645611,-410.0,0.00016986,2]
[364248696,1749048645620,-440.0,0.00016986,2]
[364248697,1749048645630,-399.719606,0.00016986,2]
[364248698,1749048645639,-440.0,0.00016986,2]
[364248699,1749048645649,-420.0,0.00016986,2]
[364248700,1749048645658,-424.8097862,0.00016986,2]
[364248701,1749048645668,-440.0,0.00016986,2]
[364248702,1749048645677,-424.92598421,0.00016986,2]
[364248703,1749048645687,-963.7,0.00016986,2]
[364248704,1749048645696,-440.0,0.00016986,2]
[364248705,1749048645706,-334.23464553,0.00016986,2]
[364248706,1749048645715,-440.0,0.00016986,2]
[364248707,1749048645725,-440.0,0.00016986,2]
[364248708,1749048645735,-440.0,0.00016986,2]
[364248709,1749048645744,-440.0,0.00016986,2]
[364248710,1749048645753,-500.0,0.00016986,2]
[364248711,1749048645762,-440.0,0.00016986,2]
[364248712,1749048645771,-440.0,0.00016986,2]
[364248713,1749048645780,-440.0,0.00016986,2]
[364248714,1749048645789,-440.0,0.00016986,2]
[364248715,1749048645798,-511.52245194,0.00016986,2]
[364248716,1749048645807,-440.0,0.00016986,2]
[364248717,1749048645816,-440.0,0.00016986,2]
[364248718,1749048645826,-440.0,0.00016986,2]
[364248719,1749048645835,-284.24085666,0.00016986,2]
[364248720,1749048645844,-400.0,0.00016986,2]
[364248721,1749048645853,-440.0,0.00016986,2]
[364248722,1749048645863,-394.36117517,0.00016986,2]
[364248723,1749048645873,-1738.48,0.00016986,2]
[364248724,1749048645882,-410.0,0.00016986,2]
[364248725,1749048645891,-440.0,0.00016986,2]
[364248726,1749048645900,-529.08,0.00016986,2]
[364248727,1749048645909,-438.26105542,0.00016986,2]
[364248728,1749048645918,-383.72934059,0.00016986,2]
[364248729,1749048645927,-440.0,0.00016986,2]
[364248730,1749048645936,-235.4318861,0.00016986,2]
[364248732,1749048645945,-1279.44,0.00016986,2]
[364248733,1749048645956,-440.0,0.00016986,2]
[364248734,1749048645965,-440.0,0.00016986,2]
[364248735,1749048645976,-2500.89,0.00016986,2]
[364248736,1749048645985,-440.0,0.00016986,2]
[364248737,1749048645994,-440.0,0.00016986,2]
[364248740,1749048646003,-322.93608731,0.00016986,2]
[364248741,1749048646013,-440.0,0.00016986,2]
[364248742,1749048646023,-391.12835272,0.00016986,2]
[364248743,1749048646032,-851.19,0.00016986,2]
[364248744,1749048646041,-440.0,0.00016986,2]
[364248745,1749048646051,-440.0,0.00016986,2]
[364248746,1749048646061,-440.0,0.00016986,2]
[364248748,1749048646073,-440.0,0.00016986,2]
[364248750,1749048646083,-440.0,0.00016986,2]
[364248752,1749048646092,-499.34,0.00016986,2]
[364248754,1749048646102,-440.0,0.00016986,2]
[364248755,1749048646112,-440.0,0.00016986,2]
[364248758,1749048646122,-4766.37,0.00016986,2]
[364248759,1749048646131,-621.14,0.00016986,2]
[364248760,1749048646140,-373.24013304,0.00016986,2]
[364248761,1749048646150,-2345.7,0.00016986,2]
[364248762,1749048646159,-440.0,0.00016986,2]
[364248763,1749048646169,-440.0,0.00016986,2]
[364248764,1749048646179,-440.0,0.00016986,2]
[364248765,1749048646188,-440.0,0.00016986,2]
[364248766,1749048646198,-440.0,0.00016986,2]
[364248767,1749048646207,-3632.46,0.00016986,2]
[364248768,1749048646217,-440.0,0.00016986,2]
[364248769,1749048646233,-440.0,0.00016986,2]
[364248770,1749048646243,-4207.85,0.00016986,2]
[364248771,1749048646253,-440.0,0.00016986,2]
[364248772,1749048646262,-440.0,0.00016986,2]
[364248773,1749048646272,-410.0,0.00016986,2]
[364248774,1749048646281,-420.0,0.00016986,2]
[364248775,1749048646291,-544.41,0.00016986,2]
[364248776,1749048646300,-400.0,0.00016986,2]
[364248777,1749048646309,-671.03,0.00016986,2]
[364248778,1749048646319,-420.0,0.00016986,2]
[364248779,1749048646328,-440.0,0.00016986,2]
[364248780,1749048646338,-440.0,0.00016986,2]
[364248781,1749048646347,-831.2,0.00016986,2]
[364248782,1749048646357,-440.0,0.00016986,2]
[364248783,1749048646366,-440.0,0.00016986,2]
[364248784,1749048646376,-440.0,0.00016986,2]
[364248785,1749048646386,-194.41348349,0.00016986,2]
[364248786,1749048646395,-524.08,0.00016986,2]
[364248787,1749048646405,-440.0,0.00016986,2]
[364248788,1749048646414,-440.0,0.00016986,2]
[364248789,1749048646424,-440.0,0.00016986,2]
[364248790,1749048646433,-1161.21,0.00016986,2]
[364248791,1749048646443,-440.0,0.00016986,2]
[364248792,1749048646452,-440.0,0.00016986,2]
[364248793,1749048646462,-440.0,0.00016986,2]
[364248794,1749048646472,-440.0,0.00016986,2]
[364248795,1749048646483,-440.0,0.00016986,2]
[364248796,1749048646492,-440.0,0.00016986,2]
[364248797,1749048646502,-440.0,0.00016986,2]
[364248798,1749048646511,-440.0,0.00016986,2]
[364248799,1749048646521,-757.95,0.00016986,2]
[364248801,1749048646531,-440.0,0.00016986,2]
[364248803,1749048646540,-3867.83,0.00016986,2]
[364248805,1749048646549,-676.86,0.00016986,2]
[364248807,1749048646559,-781.65,0.00016986,2]
[364248809,1749048646568,-203.69648315,0.00016986,2]
[364248811,1749048646578,-440.0,0.00016986,2]
[364248813,1749048646588,-440.0,0.00016986,2]
[364248815,1749048646597,-2010.74,0.00016986,2]
[364248817,1749048646607,-440.0,0.00016986,2]
[364248819,1749048646616,-610.38,0.00016986,2]
[364248821,1749048646626,-578.26,0.00016986,2]
[364248823,1749048646635,-2078.12,0.00016986,2]
[364248824,1749048646645,-410.0,0.00016986,2]
[364248825,1749048646654,-440.0,0.00016986,2]
[364248826,1749048646664,-440.0,0.00016986,2]
[364248828,1749048646674,-410.0,0.00016986,2]
[364248830,1749048646684,-194.59826496,0.00016986,2]
[364248832,1749048646693,-410.0,0.00016986,2]
[364248834,1749048646703,-440.0,0.00016986,2]
[364248836,1749048646712,-1234.84,0.00016986,2]
[364248838,1749048646722,-948.82,0.00016986,2]
[364248840,1749048646735,-1065.64067906,0.00017023,2]
[364248842,1749048646745,-646.24061561,0.00017193,2]
[364248844,1749048646754,-500.0,0.000172,2]
[364248846,1749048646763,-500.0,0.000172,2]
[364248848,1749048646772,-500.0,0.000172,2]
[364248850,1749048646781,-500.0,0.000172,2]
[364248852,1749048646791,-500.0,0.000172,2]
[364248854,1749048646800,-500.0,0.000172,2]
[364248856,1749048646810,-500.0,0.00017212,2]
[364248858,1749048646820,-500.0,0.00017229,2]
[364248860,1749048646829,-440.0,0.0001726,2]
[364248862,1749048646838,-440.0,0.0001726,2]
[364248864,1749048646847,-440.0,0.0001726,2]
[364248866,1749048646857,-440.0,0.0001726,2]
[364248868,1749048646866,-440.0,0.0001726,2]
[364248870,1749048646876,-440.0,0.0001726,2]
[364248872,1749048646886,-440.0,0.0001726,2]
[364248874,1749048646895,-440.0,0.0001726,2]
[364248885,1749048646993,-522.98,0.0001726,2]
[364248887,1749048647003,-440.0,0.0001726,2]
[364248890,1749048647013,-440.0,0.0001726,2]
[364248892,1749048647022,-440.0,0.0001726,2]
[364248893,1749048647032,-782.54,0.0001726,2]
[364248895,1749048647041,-440.0,0.0001726,2]
[364248897,1749048647050,-440.0,0.0001726,2]
[364248899,1749048647063,-440.0,0.0001726,2]
[364248901,1749048647073,-440.0,0.0001726,2]
[364248903,1749048647082,-440.0,0.0001726,2]
[364248905,1749048647092,-440.0,0.0001726,2]
[364248908,1749048647104,-440.0,0.0001726,2]
[364248910,1749048647113,-738.59,0.0001726,2]
[364248912,1749048647123,-534.59,0.0001726,2]
[364248914,1749048647132,-882.73,0.0001726,2]
[364248916,1749048647142,-440.0,0.0001726,2]
[364248918,1749048647152,-440.0,0.0001726,2]
[364248919,1749048647161,-380.0,0.0001726,2]
[364248921,1749048647171,-274.97568747,0.0001726,2]
[364248924,1749048647181,-440.0,0.0001726,2]
[364248926,1749048647190,-963.7,0.0001726,2]
[364248928,1749048647199,-436.20223324,0.0001726,2]
[364248930,1749048647209,-440.0,0.0001726,2]
[364248932,1749048647219,-440.0,0.0001726,2]
[364248933,1749048647230,-370.0,0.0001726,2]
[364248935,1749048647240,-410.0,0.0001726,2]
[364248937,1749048647250,-440.0,0.0001726,2]
[364248939,1749048647259,-390.0,0.0001726,2]
[364248941,1749048647269,-440.0,0.0001726,2]
[364248943,1749048647280,-440.0,0.0001726,2]
[364248945,1749048647290,-443.03095567,0.0001726,2]
[364248947,1749048647299,-440.0,0.0001726,2]
[364248950,1749048647310,-400.96006452,0.0001726,2]
[364248951,1749048647319,-440.0,0.0001726,2]
[364248954,1749048647329,-1738.48,0.0001726,2]
[364248956,1749048647339,-440.0,0.0001726,2]
[364248957,1749048647348,-529.08,0.0001726,2]
[364248959,1749048647358,-440.0,0.0001726,2]
[364248961,1749048647367,-1279.44,0.0001726,2]
[364248964,1749048647378,-440.0,0.0001726,2]
[364248966,1749048647388,-451.18935211,0.0001726,2]
[364248968,1749048647398,-2500.89,0.0001726,2]
[364248970,1749048647407,-410.6193301,0.0001726,2]
[364248972,1749048647417,-440.0,0.0001726,2]
[364248974,1749048647426,-491.78759444,0.0001726,2]
[364248976,1749048647435,-851.19,0.0001726,2]
[364248978,1749048647444,-390.0,0.0001726,2]
[364248980,1749048647453,-440.0,0.0001726,2]
[364248982,1749048647463,-440.0,0.0001726,2]
[364248984,1749048647472,-440.0,0.0001726,2]
[364248986,1749048647486,-400.0,0.0001726,2]
[364248987,1749048647496,-504.98352701,0.0001726,2]
[364248990,1749048647506,-318.62724353,0.0001726,2]
[364248991,1749048647515,-4766.37,0.0001726,2]
[364248993,1749048647524,-621.14,0.0001726,2]
[364248995,1749048647533,-2345.7,0.0001726,2]
[364248997,1749048647543,-399.65694276,0.0001726,2]
[364248999,1749048647552,-440.0,0.0001726,2]
[364249001,1749048647562,-440.0,0.0001726,2]
[364249004,1749048647572,-440.0,0.0001726,2]
[364249005,1749048647581,-440.0,0.0001726,2]
[364249007,1749048647591,-3632.46,0.0001726,2]
[364249010,1749048647601,-465.63660537,0.0001726,2]
[364249012,1749048647611,-440.0,0.0001726,2]
[364249014,1749048647621,-4207.85,0.0001726,2]
[364249015,1749048647631,-440.0,0.0001726,2]
[364249017,1749048647641,-440.0,0.0001726,2]
[364249019,1749048647650,-544.41,0.0001726,2]
[364249021,1749048647659,-671.03,0.0001726,2]
[364249023,1749048647669,-440.0,0.0001726,2]
[364249026,1749048647679,-346.74649996,0.0001726,2]
[364249027,1749048647689,-831.2,0.0001726,2]
[364249029,1749048647699,-440.0,0.0001726,2]
[364249031,1749048647709,-410.0,0.0001726,2]
[364249033,1749048647719,-440.0,0.0001726,2]
[364249036,1749048647730,-524.08,0.0001726,2]
[364249038,1749048647739,-440.0,0.0001726,2]
[364249040,1749048647749,-380.92212094,0.0001726,2]
[364249041,1749048647759,-440.0,0.0001726,2]
[364249043,1749048647768,-1161.21,0.0001726,2]
[364249045,1749048647778,-462.75407988,0.0001726,2]
[364249047,1749048647788,-440.0,0.0001726,2]
[364249049,1749048647797,-440.0,0.0001726,2]
[364249051,1749048647806,-440.0,0.0001726,2]
[364249053,1749048647815,-440.0,0.0001726,2]
[364249055,1749048647825,-440.0,0.0001726,2]
[364249057,1749048647835,-440.0,0.0001726,2]
[364249059,1749048647844,-440.0,0.0001726,2]
[364249061,1749048647854,-757.95,0.0001726,2]
[364249064,1749048647864,-440.0,0.0001726,2]
[364249065,1749048647874,-3867.83,0.0001726,2]
[364249067,1749048647883,-676.86,0.0001726,2]
[364249070,1749048647893,-781.65,0.0001726,2]
[364249071,1749048647902,-440.0,0.0001726,2]
[364249073,1749048647911,-440.0,0.0001726,2]
[364249075,1749048647921,-2010.74,0.0001726,2]
[364249077,1749048647930,-564.43774827,0.0001726,2]
[364249079,1749048647939,-610.38,0.0001726,2]
[364249081,1749048647949,-578.26,0.0001726,2]
[364249083,1749048647958,-2078.12,0.0001726,2]
[364249085,1749048647968,-440.0,0.0001726,2]
[364249087,1749048647978,-440.0,0.0001726,2]
[364249089,1749048647988,-440.0,0.0001726,2]
[364249091,1749048647998,-1234.84,0.0001726,2]
[364249093,1749048648008,-948.82,0.0001726,2]
[364249096,1749048648018,-372.48068192,0.00017346,2]
[364249098,1749048648027,-500.0,0.00017473,2]
[364249099,1749048648037,-500.0,0.00017473,2]
[364249101,1749048648047,-2730.32848012,0.000175,2]
[364249103,1749048648056,-2730.32847984,0.000175,2]
[364249105,1749048648067,-2730.32847984,0.000175,2]
[364249107,1749048648077,-500.0,0.00017532,2]
[364249109,1749048648087,-226.89967068,0.00017532,2]
[364249111,1749048648096,-500.0,0.00017532,2]
[364249114,1749048648106,-436.12574631,0.00017532,2]
[364249115,1749048648117,-500.0,0.00017532,2]
[364249118,1749048648127,-500.0,0.00017532,2]
[364249120,1749048648137,-500.0,0.00017532,2]
[364249122,1749048648147,-360.79214488,0.00017532,2]
[364249123,1749048648157,-500.0,0.00017532,2]
[364249126,1749048648167,-500.0,0.00017532,2]
[364249127,1749048648177,-500.0,0.00017532,2]
[364249130,1749048648186,-630.77647796,0.00017532,2]
[364249132,1749048648196,-186.67474246,0.00017532,2]
[364249134,1749048648206,-500.0,0.00017532,2]
[364249136,1749048648216,-500.0,0.00017532,2]
[364249138,1749048648227,-500.0,0.00017532,2]
[364249139,1749048648237,-500.0,0.00017532,2]
[364249141,1749048648247,-500.0,0.00017532,2]
[364249143,1749048648257,-500.0,0.00017532,2]
[364249146,1749048648266,-500.0,0.00017532,2]
[364249147,1749048648276,-500.0,0.00017532,2]
[364249149,1749048648286,-500.0,0.00017532,2]
[364249150,1749048648295,-531.74752379,0.00017532,2]
[364249152,1749048648304,-500.0,0.00017532,2]
[364249154,1749048648314,-500.0,0.00017532,2]
[364249156,1749048648323,-500.0,0.00017532,2]
[364249157,1749048648332,-500.0,0.00017532,2]
[364249160,1749048648343,-500.0,0.00017532,2]
[364249161,1749048648352,-202.6086431,0.00017532,2]
[364249163,1749048648362,-500.0,0.00017532,2]
[364249165,1749048648371,-500.0,0.00017532,2]
[364249167,1749048648381,-500.0,0.00017532,2]
[364249169,1749048648391,-500.0,0.00017532,2]
[364249171,1749048648401,-500.0,0.00017532,2]
[364249173,1749048648411,-500.0,0.00017532,2]
[364249174,1749048648420,-500.0,0.00017532,2]
[364249175,1749048648432,-239.7260795,0.00017532,2]
[364249176,1749048648442,-500.0,0.00017532,2]
[364249177,1749048648452,-500.0,0.00017532,2]
[364249178,1749048648462,-500.0,0.00017532,2]
[364249179,1749048648473,-500.0,0.00017532,2]
[364249180,1749048648484,-500.0,0.00017532,2]
[364249181,1749048648494,-500.0,0.00017532,2]
[364249182,1749048648504,-500.0,0.00017532,2]
[364249183,1749048648515,-500.0,0.00017532,2]
[364249184,1749048648525,-500.0,0.00017532,2]
[364249185,1749048648535,-500.0,0.00017532,2]
[364249186,1749048648545,-500.0,0.00017532,2]
[364249187,1749048648555,-500.0,0.00017532,2]
[364249188,1749048648565,-586.11974701,0.00017532,2]
[364249189,1749048648575,-500.0,0.00017532,2]
[364249190,1749048648672,-500.0,0.00017532,2]
[364249191,1749048648682,-440.0,0.00017534,2]
[364249192,1749048648692,-440.0,0.00017534,2]
[364249193,1749048648701,-440.0,0.00017534,2]
[364249194,1749048648712,-440.0,0.00017534,2]
[364249195,1749048648723,-390.0,0.00017534,2]
[364249196,1749048648734,-487.2248447,0.00017534,2]
[364249197,1749048648743,-440.0,0.00017534,2]
[364249198,1749048648753,-522.98,0.00017534,2]
[364249199,1749048648763,-440.0,0.00017534,2]
[364249200,1749048648773,-440.0,0.00017534,2]
[364249201,1749048648782,-440.0,0.00017534,2]
[364249202,1749048648792,-782.54,0.00017534,2]
[364249203,1749048648803,-440.0,0.00017534,2]
[364249204,1749048648812,-440.0,0.00017534,2]
[364249205,1749048648822,-440.0,0.00017534,2]
[364249206,1749048648831,-440.0,0.00017534,2]
[364249207,1749048648841,-440.0,0.00017534,2]
[364249208,1749048648850,-440.0,0.00017534,2]
[364249209,1749048648859,-162.38974434,0.00017534,2]
[364249210,1749048648869,-738.59,0.00017534,2]
[364249211,1749048648879,-534.59,0.00017534,2]
[364249212,1749048648889,-882.73,0.00017534,2]
[364249213,1749048648898,-390.0,0.00017534,2]
[364249214,1749048648908,-440.0,0.00017534,2]
[364249215,1749048648917,-440.0,0.00017534,2]
[364249216,1749048648927,-963.7,0.00017534,2]
[364249217,1749048648936,-440.0,0.00017534,2]
[364249218,1749048648945,-440.0,0.00017534,2]
[364249219,1749048648954,-440.0,0.00017534,2]
[364249220,1749048648963,-440.0,0.00017534,2]
[364249221,1749048648973,-440.0,0.00017534,2]
[364249222,1749048648984,-440.0,0.00017534,2]
[364249223,1749048648994,-253.22381847,0.00017534,2]
[364249224,1749048649004,-1738.48,0.00017534,2]
[364249225,1749048649014,-440.0,0.00017534,2]
[364249226,1749048649024,-529.08,0.00017534,2]
[364249227,1749048649034,-440.0,0.00017534,2]
[364249228,1749048649043,-1279.44,0.00017534,2]
[364249229,1749048649052,-372.22530489,0.00017534,2]
[364249230,1749048649067,-2500.89,0.00017534,2]
[364249231,1749048649075,-440.0,0.00017534,2]
[364249232,1749048649084,-851.19,0.00017534,2]
[364249233,1749048649093,-454.31829554,0.00017534,2]
[364249234,1749048649102,-271.3510758,0.00017534,2]
[364249235,1749048649110,-440.0,0.00017534,2]
[364249236,1749048649118,-4766.37,0.00017534,2]
[364249237,1749048649127,-621.14,0.00017534,2]
[364249238,1749048649134,-2345.7,0.00017534,2]
[364249239,1749048649144,-440.0,0.00017534,2]
[364249240,1749048649153,-440.0,0.00017534,2]
[364249241,1749048649162,-440.0,0.00017534,2]
[364249242,1749048649170,-440.0,0.00017534,2]
[364249243,1749048649179,-3632.46,0.00017534,2]
[364249244,1749048649187,-440.0,0.00017534,2]
[364249245,1749048649196,-4207.85,0.00017534,2]
[364249246,1749048649207,-440.0,0.00017534,2]
[364249247,1749048649216,-440.0,0.00017534,2]
[364249248,1749048649226,-544.41,0.00017534,2]
[364249249,1749048649235,-671.03,0.00017534,2]
[364249250,1749048649245,-440.0,0.00017534,2]
[364249251,1749048649255,-831.2,0.00017534,2]
[364249252,1749048649264,-440.0,0.00017534,2]
[364249253,1749048649273,-440.0,0.00017534,2]
[364249254,1749048649282,-524.08,0.00017534,2]
[364249255,1749048649291,-440.0,0.00017534,2]
[364249256,1749048649300,-440.0,0.00017534,2]
[364249257,1749048649309,-1161.21,0.00017534,2]
[364249258,1749048649319,-238.36377761,0.00017534,2]
[364249259,1749048649329,-440.0,0.00017534,2]
[364249260,1749048649338,-330.0,0.00017534,2]
[364249261,1749048649347,-440.0,0.00017534,2]
[364249262,1749048649357,-440.0,0.00017534,2]
[364249263,1749048649366,-440.0,0.00017534,2]
[364249264,1749048649376,-440.0,0.00017534,2]
[364249265,1749048649385,-757.95,0.00017534,2]
[364249266,1749048649395,-440.0,0.00017534,2]
[364249267,1749048649404,-3867.83,0.00017534,2]
[364249268,1749048649414,-676.86,0.00017534,2]
[364249269,1749048649423,-781.65,0.00017534,2]
[364249270,1749048649433,-502.110366,0.00017534,2]
[364249271,1749048649443,-440.0,0.00017534,2]
[364249272,1749048649453,-2010.74,0.00017534,2]
[364249273,1749048649462,-610.38,0.00017534,2]
[364249274,1749048649472,-578.26,0.00017534,2]
[364249275,1749048649483,-2078.12,0.00017534,2]
[364249276,1749048649493,-440.0,0.00017534,2]
[364249277,1749048649504,-440.0,0.00017534,2]
[364249278,1749048649514,-440.0,0.00017534,2]
[364249279,1749048649523,-1234.84,0.00017534,2]
[364249280,1749048649532,-368.76987472,0.00017554,2]
[364249281,1749048649542,-1065.64067906,0.00017708,2]
[364249282,1749048649551,-2730.32847984,0.00017728,2]
[364249283,1749048649561,-1000.0,0.00017748,2]
[364249284,1749048649573,-500.0,0.00017748,2]
[364249285,1749048649583,-500.0,0.00017748,2]
[364249286,1749048649593,-478.0184467,0.00017751,2]
[364249287,1749048649603,-1000.0,0.00017777,2]
[364249288,1749048649612,-160.0,0.00017807,2]
[364249289,1749048649622,-371.14681798,0.00017808,2]
[364249290,1749048649632,-440.0,0.00017808,2]
[364249291,1749048649642,-440.0,0.00017808,2]
[364249292,1749048649651,-440.0,0.00017808,2]
[364249293,1749048649662,-440.0,0.00017808,2]
[364249294,1749048649672,-522.98,0.00017808,2]
[364249295,1749048649682,-440.0,0.00017808,2]
[364249296,1749048649692,-370.0,0.00017808,2]
[364249297,1749048649703,-440.0,0.00017808,2]
[364249298,1749048649712,-782.54,0.00017808,2]
[364249299,1749048649722,-440.0,0.00017808,2]
[364249300,1749048649734,-440.0,0.00017808,2]
[364249301,1749048649744,-440.0,0.00017808,2]
[364249302,1749048649754,-440.0,0.00017808,2]
[364249303,1749048649763,-390.0,0.00017808,2]
[364249304,1749048649773,-440.0,0.00017808,2]
[364249305,1749048649783,-738.59,0.00017808,2]
[364249306,1749048649793,-534.59,0.00017808,2]
[364249307,1749048649803,-882.73,0.00017808,2]
[364249308,1749048649813,-440.0,0.00017808,2]
[364249309,1749048649824,-440.0,0.00017808,2]
[364249310,1749048649834,-963.7,0.00017808,2]
[364249311,1749048649843,-440.0,0.00017808,2]
[364249312,1749048649853,-256.06,0.00017808,2]
[364249313,1749048649863,-440.0,0.00017808,2]
[364249314,1749048649873,-522.63540472,0.00017808,2]
[364249315,1749048649883,-370.0,0.00017808,2]
[364249316,1749048649893,-440.0,0.00017808,2]
[364249317,1749048649903,-1738.48,0.00017808,2]
[364249318,1749048649912,-440.0,0.00017808,2]
[364249319,1749048649923,-529.08,0.00017808,2]
[364249320,1749048649932,-446.85005441,0.00017808,2]
[364249321,1749048649942,-1279.44,0.00017808,2]
[364249322,1749048649951,-2500.89,0.00017808,2]
[364249323,1749048649960,-440.0,0.00017808,2]
[364249324,1749048649970,-851.19,0.00017808,2]
[364249325,1749048649981,-440.0,0.00017808,2]
[364249326,1749048649991,-4766.37,0.00017808,2]
[364249327,1749048650000,-621.14,0.00017808,2]
[364249328,1749048650010,-2345.7,0.00017808,2]
[364249329,1749048650020,-440.0,0.00017808,2]
[364249330,1749048650030,-440.0,0.00017808,2]
[364249331,1749048650039,-440.0,0.00017808,2]
[364249332,1749048650049,-440.0,0.00017808,2]
[364249333,1749048650059,-3632.46,0.00017808,2]
[364249334,1749048650072,-440.0,0.00017808,2]
[364249335,1749048650082,-4207.85,0.00017808,2]
[364249336,1749048650092,-440.0,0.00017808,2]
[364249337,1749048650102,-440.0,0.00017808,2]
[364249338,1749048650111,-544.41,0.00017808,2]
[364249339,1749048650122,-671.03,0.00017808,2]
[364249340,1749048650210,-440.0,0.00017808,2]
[364249341,1749048650220,-831.2,0.00017808,2]
[364249342,1749048650230,-440.0,0.00017808,2]
[364249343,1749048650240,-440.0,0.00017808,2]
[364249344,1749048650249,-524.08,0.00017808,2]
[364249345,1749048650259,-440.0,0.00017808,2]
[364249346,1749048650268,-440.0,0.00017808,2]
[364249347,1749048650277,-1161.21,0.00017808,2]
[364249348,1749048650287,-440.0,0.00017808,2]
[364249349,1749048650297,-440.0,0.00017808,2]
[364249350,1749048650306,-440.0,0.00017808,2]
[364249351,1749048650315,-440.0,0.00017808,2]
[364249352,1749048650325,-440.0,0.00017808,2]
[364249353,1749048650335,-757.95,0.00017808,2]
[364249354,1749048650344,-440.0,0.00017808,2]
[364249355,1749048650353,-3867.83,0.00017808,2]
[364249356,1749048650363,-781.65,0.00017808,2]
[364249357,1749048650372,-676.86,0.00017808,2]
[364249358,1749048650382,-440.0,0.00017808,2]
[364249359,1749048650391,-2010.74,0.00017808,2]
[364249360,1749048650400,-610.38,0.00017808,2]
[364249361,1749048650410,-578.26,0.00017808,2]
[364249362,1749048650420,-2078.12,0.00017808,2]
[364249363,1749048650429,-440.0,0.00017808,2]
[364249364,1749048650439,-440.0,0.00017808,2]
[364249365,1749048650449,-440.0,0.00017808,2]
[364249366,1749048650459,-500.0,0.00017846,2]
[364249367,1749048650468,-420.0,0.00017962,2]
[364249368,1749048650480,-420.0,0.00017962,2]
[364249369,1749048650489,-420.0,0.00017962,2]
[364249370,1749048650499,-2730.32847984,0.00018003,2]
[364249371,1749048650508,-510.03104256,0.00018021,2]
[364249372,1749048650518,-823.26948215,0.00018021,2]
[364249373,1749048650528,-1680.0,0.00018052,2]
[364249374,1749048650538,-440.0,0.00018082,2]
[364249375,1749048650548,-494.66,0.00018082,2]